fUST/lending_fUST_20240711
["ID","MTS","AMOUNT","RATE_DAILY","PERIOD"]
[331699843,1720660244352,-542.30557815,0.00032876,2]
[331699844,1720660244362,-328.987047,0.00032876,7]
[331699845,1720660244372,-918.03633124,0.0003295,4]
[331699846,1720660244382,-350.0,0.00033,30]
[331699847,1720660244391,-262.0,0.00033,2]
[331699848,1720660244400,-262.0,0.00033,2]
[331699849,1720660244409,-153.0,0.00033068,2]
[331699850,1720660244419,-514.30926521,0.0003315,7]
[331699851,1720660244428,-500.0,0.0003315,7]
[331699852,1720660244437,-1459.44,0.0003315,4]
[331699853,1720660244447,-500.0,0.0003315,7]
[331699854,1720660244456,-500.0,0.0003315,7]
[331699855,1720660244466,-570.85595612,0.0003315,7]
[331699856,1720660244475,-500.0,0.0003315,7]
[331699857,1720660244483,-500.0,0.0003315,7]
[331699858,1720660244492,-500.0,0.0003315,7]
[331699859,1720660244501,-500.0,0.0003315,7]
[331699860,1720660244510,-500.0,0.0003315,7]
[331699861,1720660244519,-585.85,0.0003315,7]
[331699862,1720660244529,-500.0,0.0003315,7]
[331699863,1720660244538,-603.889205,0.0003315,7]
[331699864,1720660244547,-565.73,0.0003315,7]
[331699865,1720660244556,-500.0,0.0003315,7]
[331699866,1720660244565,-500.0,0.0003315,7]
[331699867,1720660244574,-500.0,0.0003315,7]
[331699868,1720660244585,-500.0,0.0003315,7]
[331699869,1720660244594,-500.0,0.0003315,7]
[331699870,1720660244604,-500.0,0.0003315,7]
[331699871,1720660244613,-630.92749384,0.0003315,7]
[331699872,1720660244622,-500.0,0.0003315,2]
[331699873,1720660244632,-500.0,0.0003315,7]
[331699874,1720660244641,-500.0,0.0003315,7]
[331699875,1720660244651,-500.0,0.0003315,7]
[331699876,1720660244660,-500.0,0.0003315,7]
[331699877,1720660244669,-830.65,0.0003315,7]
[331699878,1720660244678,-915.48,0.0003315,7]
[331699879,1720660244687,-500.0,0.0003315,7]
[331699880,1720660244696,-500.0,0.0003315,7]
[331699881,1720660244705,-613.95197689,0.0003315,7]
[331699882,1720660244714,-1626.67,0.0003315,7]
[331699883,1720660244723,-500.0,0.0003315,7]
[331699884,1720660244732,-692.2,0.0003315,7]
[331699885,1720660244741,-1455.77,0.0003315,7]
[331699886,1720660244750,-500.0,0.0003315,7]
[331699887,1720660244759,-1500.0,0.0003315,7]
[331699888,1720660244768,-500.0,0.0003315,7]
[331699889,1720660244777,-1033.88,0.0003315,7]
[331699890,1720660244785,-500.0,0.0003315,7]
[331699891,1720660244794,-574.0,0.0003315,7]
[331699892,1720660244803,-821.15,0.0003315,7]
[331699893,1720660244812,-616.67,0.0003315,7]
[331699894,1720660244821,-554.16,0.0003315,7]
[331699895,1720660244830,-500.0,0.0003315,7]
[331699896,1720660244841,-500.0,0.0003315,7]
[331699897,1720660244850,-1110.6,0.0003315,7]
[331699898,1720660244859,-541.12,0.0003315,7]
[331699899,1720660244868,-655.68,0.0003315,7]
[331699900,1720660244877,-577.77759384,0.0003315,7]
[331699901,1720660244886,-500.0,0.0003315,7]
[331699902,1720660244895,-500.0,0.0003315,7]
[331699903,1720660244904,-2860.64,0.0003315,7]
[331699904,1720660244914,-1577.01,0.0003315,7]
[331699905,1720660244923,-500.0,0.0003315,7]
[331699906,1720660244932,-500.0,0.0003315,7]
[331699907,1720660244941,-500.0,0.0003315,7]
[331699908,1720660244950,-553.60874357,0.0003315,7]
[331699909,1720660244959,-500.0,0.0003315,7]
[331699910,1720660244969,-500.0,0.0003315,7]
[331699911,1720660244978,-500.0,0.0003315,7]
[331699912,1720660244988,-180.4319345,0.0003315,7]
[331699913,1720660244997,-1442.42,0.0003315,7]
[331699914,1720660245006,-679.56,0.0003315,7]
[331699915,1720660245015,-2702.66,0.0003315,7]
[331699916,1720660245024,-500.0,0.0003315,7]
[331699917,1720660245034,-6636.31,0.0003315,7]
[331699918,1720660245043,-555.49,0.0003315,7]
[331699919,1720660245052,-500.0,0.0003315,7]
[331699920,1720660245061,-891.09,0.0003315,7]
[331699921,1720660245070,-500.0,0.0003315,7]
[331699922,1720660245080,-583.29349853,0.0003315,2]
[331699923,1720660245091,-500.0,0.0003315,7]
[331699924,1720660245100,-500.0,0.0003315,7]
[331699925,1720660245109,-500.0,0.0003315,7]
[331699926,1720660245118,-300.75929111,0.00033189,2]
[331699927,1720660245127,-300.0,0.00033259,2]
[331699928,1720660245137,-151.0,0.00033285,5]
[331699929,1720660245146,-208.83853644,0.00033292,4]
[331699930,1720660245155,-328.987047,0.00033294,7]
[331699931,1720660245164,-328.987047,0.00033294,7]
[331699932,1720660245173,-357.355499,0.00033295,2]
[331699933,1720660245182,-14384.30858629,0.000334,2]
[331699934,1720660245211,-374.63942513,0.00029813,2]
[331699935,1720660245220,-238.12381686,0.00029999,2]
[331699936,1720660245229,-61674.44531279,0.000334,2]
[331699937,1720660245238,-232.362419,0.000334,7]
[331699938,1720660245247,-232.362419,0.000334,7]
[331699939,1720660245257,-151.0,0.000334,7]
[331699940,1720660245266,-382.387352,0.000334,7]
[331699941,1720660245275,-382.387352,0.000334,7]
[331699942,1720660245286,-379.233077,0.000334,7]
[331699943,1720660245295,-379.233077,0.000334,7]
[331699944,1720660245305,-151.0,0.000334,2]
[331699945,1720660245315,-151.0,0.000334,7]
[331699946,1720660245324,-156.87525,0.000334,7]
[331699947,1720660245333,-156.87525,0.000334,7]
[331699948,1720660245342,-151.0,0.000334,7]
[331699949,1720660245351,-151.0,0.000334,7]
[331699950,1720660245361,-353.337489,0.000334,7]
[331699951,1720660245371,-353.337489,0.000334,7]
[331699952,1720660245381,-151.0,0.000334,7]
[331699953,1720660245390,-200.34981,0.000334,7]
[331699954,1720660245399,-151.0,0.000334,7]
[331699955,1720660245407,-1237.864903,0.000334,7]
[331699956,1720660245416,-1237.864903,0.000334,7]
[331699957,1720660245425,-994.197778,0.000334,7]
[331699958,1720660245434,-994.197778,0.000334,7]
[331699959,1720660245443,-151.0,0.000334,7]
[331699960,1720660245452,-151.0,0.000334,7]
[331699961,1720660245461,-500.0,0.00033424,7]
[331699962,1720660245470,-1459.44,0.00033424,4]
[331699963,1720660245479,-500.0,0.00033424,7]
[331699964,1720660245487,-500.0,0.00033424,7]
[331699965,1720660245496,-500.0,0.00033424,7]
[331699966,1720660245505,-500.0,0.00033424,7]
[331699967,1720660245514,-500.0,0.00033424,7]
[331699968,1720660245524,-500.15930954,0.00033424,7]
[331699969,1720660245533,-585.85,0.00033424,7]
[331699970,1720660245541,-573.05798059,0.00033424,7]
[331699971,1720660245550,-565.73,0.00033424,7]
[331699972,1720660245560,-500.0,0.00033424,7]
[331699973,1720660245568,-500.0,0.00033424,7]
[331699974,1720660245578,-500.0,0.00033424,7]
[331699975,1720660245588,-500.0,0.00033424,7]
[331699976,1720660245597,-468.11052064,0.00033424,7]
[331699977,1720660245607,-500.0,0.00033424,7]
[331699978,1720660245616,-500.0,0.00033424,2]
[331699979,1720660245624,-500.0,0.00033424,7]
[331699980,1720660245633,-500.0,0.00033424,7]
[331699981,1720660245643,-500.0,0.00033424,7]
[331699982,1720660245652,-830.65,0.00033424,7]
[331699983,1720660245663,-915.48,0.00033424,7]
[331699984,1720660245672,-500.0,0.00033424,7]
[331699985,1720660245681,-377.49652175,0.00033424,7]
[331699986,1720660245690,-1626.67,0.00033424,7]
[331699987,1720660245700,-500.0,0.00033424,7]
[331699988,1720660245711,-692.2,0.00033424,7]
[331699989,1720660245721,-1455.77,0.00033424,7]
[331699990,1720660245730,-410.52659604,0.00033424,7]
[331699991,1720660245740,-640.0,0.00033424,7]
[331699992,1720660245750,-500.0,0.00033424,7]
[331699993,1720660245760,-1033.88,0.00033424,7]
[331699994,1720660245771,-500.0,0.00033424,7]
[331699995,1720660245781,-574.0,0.00033424,7]
[331699996,1720660245790,-821.15,0.00033424,7]
[331699997,1720660245799,-616.67,0.00033424,7]
[331699998,1720660245808,-554.16,0.00033424,7]
[331699999,1720660245818,-500.0,0.00033424,7]
[331700000,1720660245827,-500.0,0.00033424,7]
[331700001,1720660245838,-1110.6,0.00033424,7]
[331700002,1720660245847,-541.12,0.00033424,7]
[331700003,1720660245856,-655.68,0.00033424,7]
[331700004,1720660245865,-500.0,0.00033424,7]
[331700005,1720660245874,-2860.64,0.00033424,7]
[331700006,1720660245884,-1577.01,0.00033424,7]
[331700007,1720660245893,-500.0,0.00033424,7]
[331700008,1720660245902,-500.0,0.00033424,7]
[331700009,1720660245912,-500.0,0.00033424,7]
[331700010,1720660245922,-231.71295043,0.00033424,7]
[331700011,1720660245934,-500.0,0.00033424,7]
[331700012,1720660245946,-1442.42,0.00033424,7]
[331700013,1720660245956,-679.56,0.00033424,7]
[331700014,1720660245966,-2702.66,0.00033424,7]
[331700015,1720660245976,-500.0,0.00033424,7]
[331700016,1720660245987,-6636.31,0.00033424,7]
[331700017,1720660245998,-555.49,0.00033424,7]
[331700018,1720660246007,-500.0,0.00033424,7]
[331700019,1720660246017,-891.09,0.00033424,7]
[331700020,1720660246026,-500.0,0.00033424,7]
[331700021,1720660246035,-500.0,0.00033424,7]
[331700022,1720660246045,-500.0,0.00033424,7]
[331700023,1720660246054,-157.64606829,0.0003346,7]
[331700024,1720660246063,-14393.90739769,0.000335,2]
[331700029,1720660246235,-2488.51059771,0.000335,2]
[331700050,1720660246932,-156.37674716,0.00027184,2]
[331700051,1720660246942,-105.43325284,0.00029803,2]
[331700052,1720660246954,-504.91011721,0.00029803,2]
[331700053,1720660246963,-240.12803383,0.00029979,2]
[331700054,1720660246973,-2348.85,0.0003314,3]
[331700055,1720660246982,-1271.1219655,0.000335,2]
[331700075,1720660560635,20000.0,0.00016254,2]
[331700076,1720660560660,37236.72220273,0.00016254,2]
[331700078,1720660580214,42242.98525417,0.00016255,2]
[331700087,1720660707666,238.12381686,0.00016255,2]
[331700088,1720660713725,4710.72024946,0.00016255,2]
[331700090,1720660732248,739.88963074,0.00016255,2]
[331700091,1720660735840,306.31180165,0.00016255,2]
[331700092,1720660756531,2132.45671248,0.00016255,2]
[331700093,1720660788840,240.12803383,0.00016255,2]
[331700095,1720660894080,154.83742071,0.00016255,2]
[331700096,1720660928476,154.79948781,0.00016255,2]
[331700097,1720660934151,154.79103211,0.00016255,2]
[331700098,1720660974914,973.64930219,0.00016255,2]
[331700099,1720661019155,333.0,0.00015001,2]
[331700101,1720661119869,828.49118074,0.00016255,2]
[331700102,1720661120020,1104.60661146,0.00016255,2]
[331700103,1720661142056,154.62117811,0.00016255,2]
[331700105,1720661143914,154.62117811,0.00016255,2]
[331700106,1720661145977,740.6664262,0.00016255,2]
[331700107,1720661149438,934.8017749,0.00016255,2]
[331700108,1720661167933,154.62117811,0.00016255,2]
[331700109,1720661175863,202.89614878,0.00016255,2]
[331700110,1720661180039,154.66746495,0.00016255,2]
[331700111,1720661190346,414.51901965,0.00016255,2]
[331700112,1720661194866,237.90351153,0.00016255,2]
[331700113,1720661196614,250.95849797,0.00016255,2]
[331700115,1720661239137,-154.62117811,0.00018183,2]
[331700116,1720661239162,-48.27497067,0.0002,2]
[331700117,1720661244112,-177.48321421,0.0002,2]
[331700118,1720661244132,-246.19972422,0.0002,2]
[331700119,1720661244152,-3000.0,0.00020879,2]
[331700120,1720661244172,-385.868623,0.00021096,2]
[331700121,1720661244192,-620.00377439,0.0002145,2]
[331700122,1720661244212,-97.2327684,0.00021918,2]
[331700127,1720661352145,-158.27709098,0.00021095,2]
[331700128,1720661352166,-300.0,0.00021917,2]
[331700129,1720661352186,-69.4338976,0.00021918,2]
[331700130,1720661352206,-6862.14140497,0.00021918,2]
[331700131,1720661352226,-763.61573457,0.00021918,2]
[331700132,1720661352245,-250.0,0.00021992,2]
[331700133,1720661352265,-164.704248,0.00022034,2]
[331700134,1720661352286,-24900.0,0.00022054,2]
[331700135,1720661352307,-620.00018872,0.00022522,2]
[331700136,1720661352327,-166.666666,0.00022873,2]
[331700137,1720661352347,-350.35041317,0.00022941,2]
[331700138,1720661352367,-200.0,0.00023,2]
[331700139,1720661352386,-311.8739739,0.0002333,2]
[331700140,1720661368715,183.7135394,0.00021918,2]
[331700141,1720661368735,166.666666,0.00021918,2]
[331700179,1720661432101,-1164.80827057,0.00019954,2]
[331700181,1720661432110,-1649.6197946,0.00021918,2]
[331700183,1720661432119,-207.38574204,0.00021918,2]
[331700185,1720661432128,-620.00000944,0.00023648,2]
[331700187,1720661432137,-166.666666,0.00023828,2]
[331700189,1720661432147,-166.666666,0.00024784,2]
[331700191,1720661432156,-1164.80827057,0.00024954,2]
[331700192,1720661432165,-2000.0,0.00025391,2]
[331700194,1720661432175,-1541.63076978,0.00025401,2]
[331700197,1720661432184,-159.72,0.00025481,3]
[331700198,1720661432194,-479.16,0.00025481,3]
[331700200,1720661432203,-300.0,0.00025489,2]
[331700202,1720661432212,-300.0,0.0002549,2]
[331700204,1720661432221,-319.43,0.00025491,3]
[331700206,1720661432231,-2115.96,0.00025491,3]
[331700208,1720661432239,-1763.3,0.00025491,3]
[331700210,1720661432249,-1469.42,0.00025491,3]
[331700212,1720661432258,-5942.28026378,0.00025491,3]
[331700223,1720661432504,-1004.25000015,0.00025491,3]
[331700235,1720661438166,-21004.4748171,0.00024054,2]
[331700236,1720661438176,-55274.20749927,0.00025491,3]
[331700237,1720661438186,-52142.01242753,0.00025501,2]
[331700238,1720661438195,-30000.0,0.00025501,2]
[331700239,1720661438206,-563.45459648,0.00025501,2]
[331700240,1720661438216,-10575.85738665,0.00025501,2]
[331700241,1720661438226,-258.32044528,0.00025869,2]
[331700242,1720661438236,-312.03148501,0.00025902,2]
[331700243,1720661438246,-158.14533541,0.00026567,2]
[331700244,1720661438256,-587.52851447,0.00026567,7]
[331700245,1720661438266,-1541.63076974,0.00026696,2]
[331700246,1720661438275,-167.2955598,0.00026753,2]
[331700247,1720661438285,-522.77943668,0.00026753,2]
[331700248,1720661438294,-500.0,0.00026753,2]
[331700249,1720661438304,-511.18211397,0.00026753,2]
[331700251,1720661438315,-500.0,0.00026753,2]
[331700253,1720661438324,-500.0,0.00026753,2]
[331700254,1720661438335,-500.0,0.00026753,2]
[331700256,1720661438346,-500.0,0.00026753,2]
[331700258,1720661438355,-500.0,0.00026753,2]
[331700260,1720661438365,-500.0,0.00026753,2]
[331700262,1720661438375,-500.0,0.00026753,2]
[331700264,1720661438384,-500.0,0.00026753,2]
[331700265,1720661438394,-500.0,0.00026753,2]
[331700267,1720661438403,-501.2424571,0.00026753,2]
[331700269,1720661438413,-7030.77480637,0.00026754,5]
[331700271,1720661438423,-124441.475526,0.00026754,3]
[331700272,1720661438432,-88888.0,0.00026764,3]
[331700274,1720661438442,-319.44,0.00026851,3]
[331700276,1720661438451,-638.86,0.00026861,3]
[331700277,1720661438460,-153.0,0.00027178,2]
[331700279,1720661438474,-153.0,0.00027178,2]
[331700281,1720661438484,-153.0,0.00027178,2]
[331700283,1720661438494,-153.0,0.00027178,2]
[331700285,1720661438503,-491.38620172,0.00027184,2]
[331700287,1720661438513,-403.69228639,0.00027194,2]
[331700289,1720661438523,-385.868623,0.00027195,2]
[331700291,1720661438533,-62220.7377632,0.00027387,3]
[331700293,1720661438543,-500.0,0.00027397,2]
[331700295,1720661438552,-500.0,0.00027397,2]
[331700297,1720661438564,-500.0,0.00027397,2]
[331700299,1720661438574,-500.0,0.00027397,2]
[331700301,1720661438583,-500.0,0.00027397,2]
[331700303,1720661438594,-500.0,0.00027397,2]
[331700305,1720661438607,-500.0,0.00027397,2]
[331700307,1720661438617,-500.0,0.00027397,2]
[331700309,1720661438627,-500.0,0.00027397,2]
[331700311,1720661438637,-500.0,0.00027397,2]
[331700313,1720661438647,-500.0,0.00027397,2]
[331700315,1720661438657,-500.0,0.00027397,2]
[331700316,1720661438667,-500.0,0.00027397,2]
[331700318,1720661438677,-570.12624133,0.00027397,2]
[331700320,1720661438687,-500.0,0.00027397,2]
[331700322,1720661438697,-500.0,0.00027397,2]
[331700324,1720661438708,-500.0,0.00027397,2]
[331700325,1720661438719,-500.0,0.00027397,2]
[331700327,1720661438729,-442.48153377,0.00027397,2]
[331700328,1720661438739,-500.0,0.00027397,2]
[331700329,1720661438748,-500.0,0.00027397,2]
[331700330,1720661438758,-500.0,0.00027397,2]
[331700331,1720661438768,-500.0,0.00027397,2]
[331700332,1720661438778,-500.0,0.00027397,2]
[331700333,1720661438788,-500.0,0.00027397,2]
[331700334,1720661438798,-500.0,0.00027397,2]
[331700335,1720661438808,-500.0,0.00027397,2]
[331700336,1720661438822,-500.0,0.00027397,2]
[331700337,1720661438832,-500.0,0.00027397,2]
[331700338,1720661438840,-500.0,0.00027397,2]
[331700339,1720661438850,-500.0,0.00027397,2]
[331700340,1720661438859,-500.0,0.00027397,2]
[331700341,1720661438869,-500.0,0.00027397,2]
[331700342,1720661438878,-500.0,0.00027397,2]
[331700343,1720661438888,-500.0,0.00027397,2]
[331700344,1720661438898,-500.0,0.00027397,2]
[331700345,1720661438907,-500.0,0.00027397,2]
[331700346,1720661438917,-500.0,0.00027397,2]
[331700347,1720661438927,-500.0,0.00027397,2]
[331700348,1720661438937,-500.0,0.00027397,2]
[331700349,1720661438948,-500.0,0.00027397,2]
[331700350,1720661438958,-501.6892423,0.00027397,2]
[331700351,1720661438967,-500.0,0.00027397,2]
[331700352,1720661438977,-500.0,0.00027397,2]
[331700353,1720661438986,-500.0,0.00027397,2]
[331700354,1720661438996,-500.0,0.00027397,2]
[331700355,1720661439005,-500.0,0.00027397,2]
[331700356,1720661439015,-500.0,0.00027397,2]
[331700357,1720661439025,-390.15699454,0.00027397,2]
[331700358,1720661439034,-500.0,0.00027397,2]
[331700359,1720661439044,-500.0,0.00027397,2]
[331700360,1720661439054,-500.0,0.00027397,2]
[331700361,1720661439066,-500.0,0.00027397,2]
[331700362,1720661439076,-500.0,0.00027397,2]
[331700363,1720661439085,-500.0,0.00027397,2]
[331700364,1720661439095,-500.0,0.00027397,2]
[331700365,1720661439105,-500.0,0.00027397,2]
[331700366,1720661439114,-500.0,0.00027397,2]
[331700367,1720661439123,-500.0,0.00027397,2]
[331700368,1720661439133,-500.0,0.00027397,2]
[331700369,1720661439143,-500.0,0.00027397,2]
[331700370,1720661439152,-500.0,0.00027397,2]
[331700371,1720661439161,-500.0,0.00027397,2]
[331700372,1720661439171,-500.0,0.00027397,2]
[331700373,1720661439180,-500.0,0.00027397,2]
[331700374,1720661439190,-500.0,0.00027397,2]
[331700375,1720661439199,-500.0,0.00027397,2]
[331700376,1720661439209,-500.0,0.00027397,2]
[331700377,1720661439219,-500.0,0.00027397,2]
[331700378,1720661439228,-500.0,0.00027397,2]
[331700379,1720661439238,-500.0,0.00027397,2]
[331700380,1720661439248,-500.0,0.00027397,2]
[331700381,1720661439258,-500.0,0.00027397,2]
[331700382,1720661439268,-500.0,0.00027397,2]
[331700383,1720661439279,-500.0,0.00027397,2]
[331700384,1720661439289,-500.0,0.00027397,2]
[331700385,1720661439299,-500.0,0.00027397,2]
[331700386,1720661439309,-191.61851688,0.00027397,2]
[331700387,1720661439319,-500.0,0.00027397,2]
[331700388,1720661439329,-500.0,0.00027397,2]
[331700389,1720661439338,-500.0,0.00027397,2]
[331700390,1720661439348,-500.0,0.00027397,2]
[331700391,1720661439358,-500.0,0.00027397,2]
[331700392,1720661439367,-500.0,0.00027397,2]
[331700393,1720661439377,-500.0,0.00027397,2]
[331700394,1720661439387,-500.0,0.00027397,2]
[331700395,1720661439397,-500.0,0.00027397,2]
[331700396,1720661439407,-500.0,0.00027397,2]
[331700397,1720661439417,-500.0,0.00027397,2]
[331700398,1720661439427,-250.0,0.00027397,2]
[331700399,1720661439437,-500.0,0.00027397,2]
[331700400,1720661439447,-500.0,0.00027397,2]
[331700401,1720661439582,-572.81896294,0.00027397,2]
[331700402,1720661439592,-500.0,0.00027397,2]
[331700403,1720661439602,-500.0,0.00027397,2]
[331700404,1720661439612,-500.0,0.00027397,2]
[331700405,1720661439622,-162.01028716,0.00027397,2]
[331700406,1720661439632,-500.0,0.00027397,2]
[331700407,1720661439642,-500.0,0.00027397,2]
[331700408,1720661439652,-162.01028714,0.00027397,2]
[331700409,1720661439662,-581.00514358,0.00027397,2]
[331700410,1720661439672,-581.00514358,0.00027397,2]
[331700411,1720661439682,-500.0,0.00027397,2]
[331700412,1720661439692,-500.0,0.00027397,2]
[331700413,1720661439703,-500.0,0.00027397,2]
[331700414,1720661439713,-501.63547102,0.00027397,2]
[331700415,1720661439723,-158.527152,0.00027397,120]
[331700416,1720661439733,-1541.63076974,0.00027991,2]
[331700417,1720661439743,-229.31696231,0.00028,30]
[331700418,1720661439752,-420.0,0.00028039,2]
[331700419,1720661439762,-1000.0,0.00029,2]
[331700420,1720661439772,-1541.63076974,0.00029285,2]
[331700421,1720661439782,-1718.11874089,0.00029407,2]
[331700422,1720661439792,-175.41119278,0.00029803,2]
[331700423,1720661439801,-526.29790288,0.00029803,10]
[331700424,1720661439812,-171.48721802,0.00029813,2]
[331700425,1720661439821,-308.57307675,0.00029813,2]
[331700426,1720661439831,-308.51871438,0.00029823,2]
[331700427,1720661439841,-500.0,0.00029859,2]
[331700428,1720661439851,-463.00310638,0.00029859,2]
[331700429,1720661439860,-500.0,0.00029859,2]
[331700430,1720661439870,-196.73394965,0.00029859,2]
[331700431,1720661439879,-500.0,0.00029859,2]
[331700432,1720661439889,-161.38565856,0.00029859,2]
[331700433,1720661439898,-500.0,0.00029859,2]
[331700434,1720661439907,-500.0,0.00029859,2]
[331700435,1720661439917,-324.10217447,0.00029859,2]
[331700437,1720661439926,-500.0,0.00029859,2]
[331700439,1720661439936,-600.0,0.00029859,2]
[331700441,1720661439946,-500.0,0.00029859,2]
[331700443,1720661439955,-263.75615383,0.00029859,2]
[331700445,1720661439964,-500.0,0.00029859,2]
[331700446,1720661439974,-500.0,0.00029859,2]
[331700448,1720661439984,-60445.63519189,0.0002986,3]
[331700466,1720661440351,-208.62696693,0.00025501,2]
[331700467,1720661440361,-265.63609738,0.00025869,2]
[331700468,1720661440370,-1224.52,0.00027387,3]
[331700469,1720661440380,-524.1077099,0.00029823,2]
[331700470,1720661440389,-1775.10257131,0.0002986,3]
[331700471,1720661440398,-156.3,0.00029861,2]
[331700472,1720661440407,-201.00821583,0.00029861,2]
[331700473,1720661440416,-183.22894151,0.00029861,2]
[331700474,1720661440426,-155.43553926,0.00029903,2]
[331700475,1720661440435,-272.0890637,0.00029904,2]
[331700476,1720661440445,-1042.84396616,0.00029904,2]
[331700477,1720661440454,-1164.80827057,0.00029954,2]
[331700478,1720661440463,-268.65851187,0.00029979,2]
[331700479,1720661440474,-170.47875529,0.0003,4]
[331700480,1720661440484,-471.68236775,0.0003,4]
[331700481,1720661440494,-11239.65358693,0.0003,4]
[331700482,1720661440503,-643.66349447,0.0003,4]
[331700483,1720661440513,-599.96952357,0.0003,4]
[331700484,1720661440522,-309.10360033,0.0003,4]
[331700485,1720661440531,-262.0,0.0003,2]
[331700486,1720661440541,-160.0,0.0003039,3]
[331700487,1720661440550,-1541.63076974,0.0003058,2]
[331700488,1720661440560,-3000.0,0.000306,4]
[331700489,1720661440570,-3000.0,0.0003061,4]
[331700490,1720661440579,-3000.0,0.0003062,4]
[331700491,1720661440588,-3000.0,0.0003063,4]
[331700492,1720661440597,-3000.0,0.0003064,5]
[331700493,1720661440607,-3000.0,0.0003065,5]
[331700494,1720661440616,-3000.0,0.0003066,5]
[331700495,1720661440626,-3000.0,0.0003067,5]
[331700496,1720661440635,-3000.0,0.0003068,5]
[331700497,1720661440644,-3000.0,0.0003069,5]
[331700498,1720661440654,-3000.0,0.000307,5]
[331700499,1720661440663,-151.0,0.00030708,4]
[331700500,1720661440673,-3000.0,0.0003071,5]
[331700501,1720661440682,-3000.0,0.0003072,5]
[331700502,1720661440692,-3000.0,0.0003073,5]
[331700503,1720661440706,-3000.0,0.0003074,5]
[331700504,1720661440716,-3000.0,0.0003075,5]
[331700505,1720661440726,-3000.0,0.0003076,5]
[331700506,1720661440735,-3000.0,0.0003077,5]
[331700507,1720661440745,-3000.0,0.0003078,5]
[331700508,1720661440755,-3000.0,0.0003079,5]
[331700509,1720661440764,-5292.88975486,0.00030794,2]
[331700510,1720661440774,-587.0,0.00030843,2]
[331700511,1720661440784,-160.0,0.00030867,4]
[331700512,1720661440793,-366.6405652,0.0003092,2]
[331700513,1720661440802,-151.0,0.00031222,4]
[331700514,1720661440813,-160.0,0.00031343,5]
[331700515,1720661440822,-8078.172377,0.000317,2]
[331700516,1720661440832,-151.0,0.00031735,4]
[331700517,1720661440841,-8054.41536007,0.00031815,3]
[331700518,1720661440851,-160.0,0.0003182,6]
[331700519,1720661440860,-60387.09071445,0.00032199,2]
[331700520,1720661440873,-135581.28282062,0.00032199,2]
[331700585,1720661446324,-155.28153809,0.00026567,2]
[331700586,1720661446334,-1796.73613866,0.00027999,2]
[331700587,1720661446344,-156.30936896,0.00029823,2]
[331700588,1720661446353,-253.11569828,0.00029879,2]
[331700589,1720661446363,-22540.76921583,0.00032199,2]
[331700590,1720661446375,-769.8,0.00032199,2]
[331700596,1720661843341,12929.30552394,0.0001,2]
[331700597,1720661903389,3087.25360502,0.00016255,2]
[331700598,1720661908270,1613.94850595,0.0001,2]
[331700599,1720661911971,527.1462034,0.00012121,2]
[331700600,1720661978115,568.45424981,0.00014692,2]
[331700601,1720661993914,2564.53979914,0.00016255,2]
[331700602,1720662022671,166.5433282,0.00015,2]
[331700604,1720662108915,2564.53979914,0.00016255,2]
[331700609,1720662162588,620.48076299,0.00016255,2]
[331700613,1720662219930,2358.1964875,0.00016255,2]